{"text_format":"1","workbook":"xlsx","n_sheets":2,"sheets":["Feuil2","Feuil3"],"not_rendered":{"charts":0,"images":0,"macros":1,"external_links":0,"defined_names":0,"comments":0,"pivot_tables":0},"unopened":[],"bounds":{"document_bytes":16777216,"sheet_cells":100000,"rows_first":2000,"rows_last":500,"rows_between":2000,"halvings":0,"cell_chars":16384,"cell_head_chars":4096},"cells_cut":0,"cells_raw":0,"read":"whole","date_system":"1900"}

{"sheet":"Feuil2","index":0,"n_rows":34,"n_cols":26,"rows_kept":34,"cut":false,"hidden":false,"merged":[]}
["Noms","Validation","Option 1 renvoi en ligne",null,null,"Option 2 renvoi sans blanc",null,null,null,null,null,null,null,null,null,null,null,null,null,null,null,null,null,null,null,"code affectation"]
["DUPONT","X",{"$f":"IF(B2=\"X\",A2,\"\")","v":"DUPONT"},null,null,{"$f":"IFERROR(INDEX($A$2:$B$9,MATCH(ROW(A1),$Z$2:$Z$10,0),1),\"\")","v":"DUPONT"},null,null,null,null,null,null,null,null,null,null,null,null,null,null,null,null,null,null,null,{"$f":"IF(B2=\"X\",MAX($Z$1:Z1)+1,0)","v":1}]
["DURANT",null,{"$f":"IF(B3=\"X\",A3,\"\")","v":""},null,null,{"$f":"IFERROR(INDEX($A$2:$B$9,MATCH(ROW(A2),$Z$2:$Z$10,0),1),\"\")","v":"Roger"},null,null,null,null,null,null,null,null,null,null,null,null,null,null,null,null,null,null,null,{"$f":"IF(B3=\"X\",MAX($Z$1:Z2)+1,0)","v":0}]
["Roger","X","Roger",null,null,"Antoine",null,null,null,null,null,null,null,null,null,null,null,null,null,null,null,null,null,null,null,{"$f":"IF(B4=\"X\",MAX($Z$1:Z3)+1,0)","v":2}]
["Elodie",null,"",null,null,"",null,null,null,null,null,null,null,null,null,null,null,null,null,null,null,null,null,null,null,{"$f":"IF(B5=\"X\",MAX($Z$1:Z4)+1,0)","v":0}]
["Marcel",null,"",null,null,"",null,null,null,null,null,null,null,null,null,null,null,null,null,null,null,null,null,null,null,{"$f":"IF(B6=\"X\",MAX($Z$1:Z5)+1,0)","v":0}]
["Carla",null,"",null,null,"",null,null,null,null,null,null,null,null,null,null,null,null,null,null,null,null,null,null,null,{"$f":"IF(B7=\"X\",MAX($Z$1:Z6)+1,0)","v":0}]
["Antoine","X","Antoine",null,null,"",null," ",null,null,null,null,null,null,null,null,null,null,null,null,null,null,null,null,null,{"$f":"IF(B8=\"X\",MAX($Z$1:Z7)+1,0)","v":3}]
["René",null,"",null,null,"",null,null,null,null,null,null,null,null,null,null,null,null,null,null,null,null,null,null,null,{"$f":"IF(B9=\"X\",MAX($Z$1:Z8)+1,0)","v":0}]
["Elena",null,"",null,null,"",null,null,null,null,null,null,null,null,null,null,null,null,null,null,null,null,null,null,null,{"$f":"IF(B10=\"X\",MAX($Z$1:Z9)+1,0)","v":0}]
[]
["colonne B: un menu pour placer X.. Voir:"]
["sélectionner B2:B10  / Ruban  / Données / Validation"]
[]
["Colonne B toujours: une mis en forme conditionnelle pour passer les cellules X en jaune voir:"]
["sélectionner B2:B10  /  Ruban / accueil / mise en forme conditionnelle / Gérer les régles"]
[]
["Colonne Z codage des affectés: cette colonne peut être masquée (clic droit sur le Z dans lé rège et \"masquer\""]
[]
["Colonne C une première option avec report direct des validés en ligne avec le tableau d'origine"]
[]
["Colonne F seconde option avec résultat de l'édition des codés sans cellule vide dans l'édition"]
["la formule:"]
["=SIERREUR(INDEX($A$2:$B$9;EQUIV(LIGNE(A1);$Z$2:$Z$10;0);1);\"\")"]
[]
["SIERREUR(formule);\"\") évite les affichages d'erreur si aucune valeur n'est trouvé"]
[]
["INDEX($A$2:$B$9  délimite le champ de recherche"]
[]
["EQUIV(LIGNE(A1);$Z$2:$Z$10;0) va chercher le N° de ligne dans Z2:Z9 ou se triouve la valeurn cehrchée  soit LIGNE(A1)"]
["LIGNE(A1)  définit la valeur à trouver dans Z pour Excel LIGNE(A1)=1  devient ligne A2 en F3  donc 2   etc.. "]
["Le ;0) est un code Excel pour définir le type de recherche dans Z effectuée par EQUIV"]
[]
[";1) désigne le rang de colonne duchamp INDEX où se trouve la, valeur à ressortir"]

{"sheet":"Feuil3","index":1,"n_rows":0,"n_cols":0,"rows_kept":0,"cut":false,"hidden":false,"merged":[]}